Workbook

Sheet мини-центр
B1: на 2025-2026 учебный год
A2: Калькуляционный метод формирования цены на платные услуги
A5: РАСЧЕТ
A6: ЗАТРАТ НА ОПЛАТУ ТРУДА ОСНОВНОГО ПЕРСОНАЛА, НЕПОСРЕДСТВЕННО
A7: УЧАСТВУЮЩЕГО В ПРОЦЕССЕ ОКАЗАНИЯ ПЛАТНОЙ УСЛУГИ
A9: Наименование | B9: Средняя заработная плата, включая начисления на выплаты по оплате труда, рублей в месяц | C9: Месячный фонд рабочего времени, минут | D9: Норма времени на оказание платной услуги, минут | E9: Затраты на оплату труда персонала, рублей
A10: должности
A11: 1 | B11: 2 | C11: 3 | D11: 4 | E11: 5
A12: воспитатель логопед | B12: 67528.58 | C12: 5040 | D12: 30 | E12: =B12/C12*D12 -> 401.96
A13: …. | B13: …. | C13: …. | D13: …. | E13: ….
A14: Итого | B14: X | C14: X | D14: X
A18: РАСЧЕТ
A19: ЗАТРАТ НА МАТЕРИАЛЬНЫЕ ЗАПАСЫ, ПОЛНОСТЬЮ ПОТРЕБЛЯЕМЫЕ
A20: В ПРОЦЕССЕ ОКАЗАНИЯ ПЛАТНОЙ УСЛУГИ (РАБОТЫ)
A22: Вид материальных запасов | B22: Наименование товара, составляющего материальный запас | C22: Единиц измерения | D22: Норма потребления | E22: Объем оказания платных услуг за норму времени | F22: Цена за единицу | G22: Всего затрат материальных запасов
A23: 1 | B23: 2 | C23: 3 | D23: 4 | E23: 5 | F23: 6 | G23: 7
A24: 1 | B24: зеркало | C24: шт | D24: 1 | E24: =D24/30 -> 0.03 | F24: 83 | G24: =D24*E24*F24 -> 2.77
A25: =A24+1 -> 2 | B25: картинный материал | C25: шт | D25: 1 | E25: =D25/30 -> 0.03 | F25: 138 | G25: =D25*E25*F25 -> 4.60
A26: =A25+1 -> 3 | B26: пособия | C26: шт | D26: 1 | E26: 0.03 | F26: 180 | G26: =D26*E26*F26 -> 6.00
A27: 4 | B27: дидактические игры | C27: шт | D27: 1 | E27: 0.03 | F27: 339 | G27: 11.30
A28: 5 | B28: зеркало маленькое | C28: шт | D28: 8 | E28: 0.27 | F28: 50 | G28: 106.67
A29: Итого | B29: X | C29: X | D29: X | F29: X | G29: =SUM(G24:G28) -> 131.33
A32: РАСЧЕТ
A33: СУММЫ НАЧИСЛЕННОЙ АМОРТИЗАЦИИ ОБОРУДОВАНИЯ,
A34: ИСПОЛЬЗУЕМОГО ПРИ ОКАЗАНИИ ПЛАТНОЙ УСЛУГИ (РАБОТЫ)
A36: Наименование оборудования | B36: Балансовая стоимость | C36: Годовая норма износа, процентов | D36: Годовая норма времени работы оборудования, часов | E36: Время работы оборудования в процессе оказания платной услуги, часов | F36: Сумма начисленной амортизации
A37: 1 | B37: 2 | C37: 3 | D37: 4 | E37: 5 | F37: 6
A38: …. | B38: …. | C38: …. | D38: …. | E38: …. | F38: ….
A39: …. | B39: …. | C39: …. | D39: …. | E39: …. | F39: ….
A40: Итого | B40: X | C40: X | D40: X | E40: X
A43: РАСЧЕТ
A44: НАКЛАДНЫХ ЗАТРАТ, НЕОБХОДИМЫХ ДЛЯ ОБЕСПЕЧЕНИЯ
A45: ДЕЯТЕЛЬНОСТИ УЧРЕЖДЕНИЯ ПРИ ОКАЗАНИИ
A46: ПЛАТНОЙ УСЛУГИ (РАБОТЫ)
A48: N | B48: Наименование статей затрат | C48: Сумма
A49: п/п
A50: 1 | B50: Прогноз затрат на административно-управленческий персонал | C50: 225897
A51: 2 | B51: Прогноз затрат общехозяйственного назначения | C51: 1892277.14
A52: 3 | B52: Прогноз суммы начисленной амортизации имущества общехозяйственного назначения | C52: 314048.02
A53: 4 | B53: Прогноз суммарного фонда оплаты труда основного персонала | C53: 21802406.46
A54: 5 | B54: Коэффициент накладных затрат | C54: =(C50+C51+C52)/C53 -> 0.112
A55: 6 | B55: Затраты на основной персонал, участвующий в предоставлении платной услуги | C55: =E12 -> 401.96
A56: 7 | B56: Итого накладных затрат | C56: =C55*C54 -> 44.84
A59: РАСЧЕТ
A60: ЦЕНЫ НА ОКАЗАНИЕ ПЛАТНОЙ УСЛУГИ (РАБОТЫ)
A61: Кружок "коррекция речи"
A62: N | B62: Наименование статей затрат | C62: Единица | D62: Показатель
A63: п/п | C63: измерения
A64: 1 | B64: Затраты на оплату труда основного персонала | C64: рублей | D64: =E12 -> 401.96
A65: 2 | B65: Затраты материальных запасов | C65: рублей | D65: =G29 -> 131.33
A66: 3 | B66: Сумма начисленной амортизации оборудования, | C66: рублей | D66: 0
B67: используемого при оказании платной услуги
A68: 4 | B68: Накладные затраты, относимые на платную услугу | C68: рублей | D68: =C56 -> 44.84
A69: 5 | B69: Итого затрат | C69: рублей | D69: =D68+D66+D65+D64 -> 578.13
A70: 6 | B70: Рентабельность | C70: процентов | D70: 20
A71: 7 | B71: Затраты с учетом рентабельности | C71: рублей | D71: =D69*1.2 -> 694
A72: 8 | B72: Плановое количество оказываемых услуг | C72: штук | D72: 8
A73: 9 | B73: Цена платной услуги | C73: рублей за | D73: =D72*D71 -> 5550.05
C74: 1 услугу
A75: 10 | B75: Цена одного воспитанника в месяц | C75: рублей | D75: 4800

Sheet Нейрогимнастика
B1: на 2025-2026 учебный год
A2: Калькуляционный метод формирования цены на платные услуги
A5: РАСЧЕТ
A6: ЗАТРАТ НА ОПЛАТУ ТРУДА ОСНОВНОГО ПЕРСОНАЛА, НЕПОСРЕДСТВЕННО
A7: УЧАСТВУЮЩЕГО В ПРОЦЕССЕ ОКАЗАНИЯ ПЛАТНОЙ УСЛУГИ
A9: Наименование | B9: Средняя заработная плата, включая начисления на выплаты по оплате труда, рублей в месяц | C9: Месячный фонд рабочего времени, минут | D9: Норма времени на оказание платной услуги, минут | E9: Затраты на оплату труда персонала, рублей
A10: должности
A11: 1 | B11: 2 | C11: 3 | D11: 4 | E11: 5
A12: воспитатель(Данилова) | B12: 90920.82 | C12: 9072 | D12: 30 | E12: =B12/C12*D12 -> 300.66
A13: Итого | B13: X | C13: X | D13: X
A17: РАСЧЕТ
A18: ЗАТРАТ НА МАТЕРИАЛЬНЫЕ ЗАПАСЫ, ПОЛНОСТЬЮ ПОТРЕБЛЯЕМЫЕ
A19: В ПРОЦЕССЕ ОКАЗАНИЯ ПЛАТНОЙ УСЛУГИ (РАБОТЫ)
A21: Вид материальных запасов | B21: Наименование товара, составляющего материальный запас | C21: Единиц измерения | D21: Норма потребления | E21: Объем оказания платных услуг за норму времени | F21: Цена за единицу | G21: Всего затрат материальных запасов
A22: 1 | B22: 2 | C22: 3 | D22: 4 | E22: 5 | F22: 6 | G22: 7
A23: 1 | B23: массажный шарик | C23: шт | D23: 1 | E23: =D23/25 -> 0.04 | F23: 55 | G23: =D23*E23*F23 -> 2.20
A24: 2 | B24: шашки | C24: шт | D24: 1 | E24: =D24/25 -> 0.04 | F24: 500 | G24: =D24*E24*F24 -> 20.00
A25: Итого | B25: X | C25: X | D25: X | F25: X | G25: =SUM(G23:G24) -> 22.20
A28: РАСЧЕТ
A29: СУММЫ НАЧИСЛЕННОЙ АМОРТИЗАЦИИ ОБОРУДОВАНИЯ,
A30: ИСПОЛЬЗУЕМОГО ПРИ ОКАЗАНИИ ПЛАТНОЙ УСЛУГИ (РАБОТЫ)
A32: Наименование оборудования | B32: Балансовая стоимость | C32: Годовая норма износа, процентов | D32: Годовая норма времени работы оборудования, часов | E32: Время работы оборудования в процессе оказания платной услуги, часов | F32: Сумма начисленной амортизации
A33: 1 | B33: 2 | C33: 3 | D33: 4 | E33: 5 | F33: 6
A34: …. | B34: …. | C34: …. | D34: …. | E34: …. | F34: ….
A35: …. | B35: …. | C35: …. | D35: …. | E35: …. | F35: ….
A36: Итого | B36: X | C36: X | D36: X | E36: X
A39: РАСЧЕТ
A40: НАКЛАДНЫХ ЗАТРАТ, НЕОБХОДИМЫХ ДЛЯ ОБЕСПЕЧЕНИЯ
A41: ДЕЯТЕЛЬНОСТИ УЧРЕЖДЕНИЯ ПРИ ОКАЗАНИИ
A42: ПЛАТНОЙ УСЛУГИ (РАБОТЫ)
A44: N | B44: Наименование статей затрат | C44: Сумма
A45: п/п
A46: 1 | B46: Прогноз затрат на административно-управленческий персонал | C46: 225897
A47: 2 | B47: Прогноз затрат общехозяйственного назначения | C47: 1892277.14
A48: 3 | B48: Прогноз суммы начисленной амортизации имущества общехозяйственного назначения | C48: 314048.02
A49: 4 | B49: Прогноз суммарного фонда оплаты труда основного персонала | C49: 21802406.46
A50: 5 | B50: Коэффициент накладных затрат | C50: =(C46+C47+C48)/C49 -> 0.112
A51: 6 | B51: Затраты на основной персонал, участвующий в предоставлении платной услуги | C51: =E12 -> 300.66
A52: 7 | B52: Итого накладных затрат | C52: =C51*C50 -> 33.54
A55: РАСЧЕТ
A56: ЦЕНЫ НА ОКАЗАНИЕ ПЛАТНОЙ УСЛУГИ (РАБОТЫ)
A57: Кружок "Нейрогимнастика "
A58: N | B58: Наименование статей затрат | C58: Единица | D58: Показатель
A59: п/п | C59: измерения
A60: 1 | B60: Затраты на оплату труда основного персонала | C60: рублей | D60: =E12 -> 300.66
A61: 2 | B61: Затраты материальных запасов | C61: рублей | D61: =G25 -> 22.2
A62: 3 | B62: Сумма начисленной амортизации оборудования, | C62: рублей | D62: 0
B63: используемого при оказании платной услуги
A64: 4 | B64: Накладные затраты, относимые на платную услугу | C64: рублей | D64: =C52 -> 33.54
A65: 5 | B65: Итого затрат | C65: рублей | D65: =D64+D62+D61+D60 -> 356.41
A66: 6 | B66: Рентабельность | C66: процентов | D66: 20
A67: 7 | B67: Затраты с учетом рентабельности | C67: рублей | D67: =(D65*0.2)+D65 -> 428
A68: 8 | B68: Плановое количество оказываемых услуг | C68: штук | D68: 8
A69: 9 | B69: Цена платной услуги | C69: рублей за | D69: =D68*D67 -> 3421.49
C70: 1 услугу
A71: 10 | B71: Цена одного воспитанника в месяц | C71: рублей | D71: 1360

Sheet массаж
B1: на 2025-2026 учебный год
A2: Калькуляционный метод формирования цены на платные услуги
A5: РАСЧЕТ
A6: ЗАТРАТ НА ОПЛАТУ ТРУДА ОСНОВНОГО ПЕРСОНАЛА, НЕПОСРЕДСТВЕННО
A7: УЧАСТВУЮЩЕГО В ПРОЦЕССЕ ОКАЗАНИЯ ПЛАТНОЙ УСЛУГИ
A9: Наименование | B9: Средняя заработная плата, включая начисления на выплаты по оплате труда, рублей в месяц | C9: Месячный фонд рабочего времени, минут | D9: Норма времени на оказание платной услуги, минут | E9: Затраты на оплату труда персонала, рублей
A10: должности
A11: 1 | B11: 2 | C11: 3 | D11: 4 | E11: 5
A12: медсестра | B12: 51492.05 | C12: 9702 | D12: 30 | E12: =B12/C12*D12 -> 159.22
A13: …. | B13: …. | C13: …. | D13: …. | E13: ….
A14: Итого | B14: X | C14: X | D14: X
A18: РАСЧЕТ
A19: ЗАТРАТ НА МАТЕРИАЛЬНЫЕ ЗАПАСЫ, ПОЛНОСТЬЮ ПОТРЕБЛЯЕМЫЕ
A20: В ПРОЦЕССЕ ОКАЗАНИЯ ПЛАТНОЙ УСЛУГИ (РАБОТЫ)
A22: Вид материальных запасов | B22: Наименование товара, составляющего материальный запас | C22: Единиц измерения | D22: Норма потребления | E22: Объем оказания платных услуг за норму времени | F22: Цена за единицу | G22: Всего затрат материальных запасов
A23: 1 | B23: 2 | C23: 3 | D23: 4 | E23: 5 | F23: 6 | G23: 7
A24: 1 | B24: крем | C24: шт | D24: 0.05 | E24: 0.04 | F24: 140 | G24: =D24*E24*F24 -> 0.28
A29: Итого | B29: X | C29: X | D29: X | F29: X | G29: =SUM(G24:G28) -> 0.28
A32: РАСЧЕТ
A33: СУММЫ НАЧИСЛЕННОЙ АМОРТИЗАЦИИ ОБОРУДОВАНИЯ,
A34: ИСПОЛЬЗУЕМОГО ПРИ ОКАЗАНИИ ПЛАТНОЙ УСЛУГИ (РАБОТЫ)
A36: Наименование оборудования | B36: Балансовая стоимость | C36: Годовая норма износа, процентов | D36: Годовая норма времени работы оборудования, часов | E36: Время работы оборудования в процессе оказания платной услуги, часов | F36: Сумма начисленной амортизации
A37: 1 | B37: 2 | C37: 3 | D37: 4 | E37: 5 | F37: 6
A38: …. | B38: …. | C38: …. | D38: …. | E38: …. | F38: ….
A39: …. | B39: …. | C39: …. | D39: …. | E39: …. | F39: ….
A40: Итого | B40: X | C40: X | D40: X | E40: X
A43: РАСЧЕТ
A44: НАКЛАДНЫХ ЗАТРАТ, НЕОБХОДИМЫХ ДЛЯ ОБЕСПЕЧЕНИЯ
A45: ДЕЯТЕЛЬНОСТИ УЧРЕЖДЕНИЯ ПРИ ОКАЗАНИИ
A46: ПЛАТНОЙ УСЛУГИ (РАБОТЫ)
A48: N | B48: Наименование статей затрат | C48: Сумма
A49: п/п
A50: 1 | B50: Прогноз затрат на административно-управленческий персонал | C50: 225897
A51: 2 | B51: Прогноз затрат общехозяйственного назначения | C51: 1892277.14
A52: 3 | B52: Прогноз суммы начисленной амортизации имущества общехозяйственного назначения | C52: 314048.02
A53: 4 | B53: Прогноз суммарного фонда оплаты труда основного персонала | C53: 21802406.46
A54: 5 | B54: Коэффициент накладных затрат | C54: =(C50+C51+C52)/C53 -> 0.112
A55: 6 | B55: Затраты на основной персонал, участвующий в предоставлении платной услуги | C55: =E12 -> 159.22
A56: 7 | B56: Итого накладных затрат | C56: =C55*C54 -> 17.76
A59: РАСЧЕТ
A60: ЦЕНЫ НА ОКАЗАНИЕ ПЛАТНОЙ УСЛУГИ (РАБОТЫ)
A61: Кружок "Массаж"
A62: N | B62: Наименование статей затрат | C62: Единица | D62: Показатель
A63: п/п | C63: измерения
A64: 1 | B64: Затраты на оплату труда основного персонала | C64: рублей | D64: =E12 -> 159.22
A65: 2 | B65: Затраты материальных запасов | C65: рублей | D65: =G29 -> 0.28
A66: 3 | B66: Сумма начисленной амортизации оборудования, | C66: рублей | D66: 0
B67: используемого при оказании платной услуги
A68: 4 | B68: Накладные затраты, относимые на платную услугу | C68: рублей | D68: =C56 -> 17.76
A69: 5 | B69: Итого затрат | C69: рублей | D69: =D68+D66+D65+D64 -> 177.26
A70: 6 | B70: Рентабельность | C70: процентов | D70: =D69*20% -> 35.45264492
A71: 7 | B71: Затраты с учетом рентабельности | C71: рублей | D71: =D69*1.2 -> 213
A72: 8 | B72: Плановое количество оказываемых услуг | C72: штук | D72: 10
A73: 9 | B73: Цена платной услуги | C73: рублей за | D73: =D72*D71 -> 2127.16
C74: 1 услугу
A75: 10 | B75: Цена одного воспитанника в месяц | C75: рублей | D75: 2500

Sheet Фитбол-гимнастика
B1: на 2025-2026 учебный год
A2: Калькуляционный метод формирования цены на платные услуги
A5: РАСЧЕТ
A6: ЗАТРАТ НА ОПЛАТУ ТРУДА ОСНОВНОГО ПЕРСОНАЛА, НЕПОСРЕДСТВЕННО
A7: УЧАСТВУЮЩЕГО В ПРОЦЕССЕ ОКАЗАНИЯ ПЛАТНОЙ УСЛУГИ
A9: Наименование | B9: Средняя заработная плата, включая начисления на выплаты по оплате труда, рублей в месяц | C9: Месячный фонд рабочего времени, минут | D9: Норма времени на оказание платной услуги, минут | E9: Затраты на оплату труда персонала, рублей
A10: должности
A11: 1 | B11: 2 | C11: 3 | D11: 4 | E11: 5
A12: воспитатель (Смолонцева М.И) | B12: 62836.21 | C12: 7560 | D12: 30 | E12: =B12/C12*D12 -> 249.35
A13: Итого | B13: X | C13: X | D13: X
A17: РАСЧЕТ
A18: ЗАТРАТ НА МАТЕРИАЛЬНЫЕ ЗАПАСЫ, ПОЛНОСТЬЮ ПОТРЕБЛЯЕМЫЕ
A19: В ПРОЦЕССЕ ОКАЗАНИЯ ПЛАТНОЙ УСЛУГИ (РАБОТЫ)
A21: Вид материальных запасов | B21: Наименование товара, составляющего материальный запас | C21: Единиц измерения | D21: Норма потребления | E21: Объем оказания платных услуг за норму времени | F21: Цена за единицу | G21: Всего затрат материальных запасов
A22: 1 | B22: 2 | C22: 3 | D22: 4 | E22: 5 | F22: 6 | G22: 7
A23: 1 | B23: платочки | C23: шт | D23: 1 | E23: =D23/30 -> 0.03 | F23: 126 | G23: =D23*E23*F23 -> 4.2
A24: =A23+1 -> 2 | B24: флажки | C24: шт | D24: 1 | E24: =D24/30 -> 0.03 | F24: 58 | G24: =D24*E24*F24 -> 1.93
A25: =A24+1 -> 3 | B25: мяч фитбольный | C25: шт | D25: 1 | E25: 0.03 | F25: 210 | G25: =D25*E25*F25 -> 7
A26: 4 | B26: обручи | C26: шт | D26: 1 | E26: 0.03 | F26: 98 | G26: 3.27
A27: Итого | B27: X | C27: X | D27: X | F27: X | G27: =SUM(G23:G26) -> 16.4
A30: РАСЧЕТ
A31: СУММЫ НАЧИСЛЕННОЙ АМОРТИЗАЦИИ ОБОРУДОВАНИЯ,
A32: ИСПОЛЬЗУЕМОГО ПРИ ОКАЗАНИИ ПЛАТНОЙ УСЛУГИ (РАБОТЫ)
A34: Наименование оборудования | B34: Балансовая стоимость | C34: Годовая норма износа, процентов | D34: Годовая норма времени работы оборудования, часов | E34: Время работы оборудования в процессе оказания платной услуги, часов | F34: Сумма начисленной амортизации
A35: 1 | B35: 2 | C35: 3 | D35: 4 | E35: 5 | F35: 6
A36: …. | B36: …. | C36: …. | D36: …. | E36: …. | F36: ….
A37: …. | B37: …. | C37: …. | D37: …. | E37: …. | F37: ….
A38: Итого | B38: X | C38: X | D38: X | E38: X
A41: РАСЧЕТ
A42: НАКЛАДНЫХ ЗАТРАТ, НЕОБХОДИМЫХ ДЛЯ ОБЕСПЕЧЕНИЯ
A43: ДЕЯТЕЛЬНОСТИ УЧРЕЖДЕНИЯ ПРИ ОКАЗАНИИ
A44: ПЛАТНОЙ УСЛУГИ (РАБОТЫ)
A46: N | B46: Наименование статей затрат | C46: Сумма
A47: п/п
A48: 1 | B48: Прогноз затрат на административно-управленческий персонал | C48: 225897
A49: 2 | B49: Прогноз затрат общехозяйственного назначения | C49: 1892277.14
A50: 3 | B50: Прогноз суммы начисленной амортизации имущества общехозяйственного назначения | C50: 314048.02
A51: 4 | B51: Прогноз суммарного фонда оплаты труда основного персонала | C51: 21802406.46
A52: 5 | B52: Коэффициент накладных затрат | C52: =(C48+C49+C50)/C51 -> 0.112
A53: 6 | B53: Затраты на основной персонал, участвующий в предоставлении платной услуги | C53: =E12 -> 249.35
A54: 7 | B54: Итого накладных затрат | C54: =C53*C52 -> 27.82
A57: РАСЧЕТ
A58: ЦЕНЫ НА ОКАЗАНИЕ ПЛАТНОЙ УСЛУГИ (РАБОТЫ)
A59: Кружок "Фитбол-гимнастика"
A60: N | B60: Наименование статей затрат | C60: Единица | D60: Показатель
A61: п/п | C61: измерения
A62: 1 | B62: Затраты на оплату труда основного персонала | C62: рублей | D62: =E12 -> 249.35
A63: 2 | B63: Затраты материальных запасов | C63: рублей | D63: =G27 -> 16.4
A64: 3 | B64: Сумма начисленной амортизации оборудования, | C64: рублей | D64: 0
B65: используемого при оказании платной услуги
A66: 4 | B66: Накладные затраты, относимые на платную услугу | C66: рублей | D66: =C54 -> 27.82
A67: 5 | B67: Итого затрат | C67: рублей | D67: =D66+D64+D63+D62 -> 293.57
A68: 6 | B68: Рентабельность | C68: процентов | D68: 20
A69: 7 | B69: Затраты с учетом рентабельности | C69: рублей | D69: =(D67*0.2)+D67 -> 352
A70: 8 | B70: Плановое количество оказываемых услуг | C70: штук | D70: 8
A71: 9 | B71: Цена платной услуги | C71: рублей за | D71: 1920.00
C72: 1 услугу
A73: 10 | B73: Цена одного воспитанника в месяц | C73: рублей | D73: 1200

Sheet Неутомимые-кони
B1: на 2025-2026 учебный год
A2: Калькуляционный метод формирования цены на платные услуги
A5: РАСЧЕТ
A6: ЗАТРАТ НА ОПЛАТУ ТРУДА ОСНОВНОГО ПЕРСОНАЛА, НЕПОСРЕДСТВЕННО
A7: УЧАСТВУЮЩЕГО В ПРОЦЕССЕ ОКАЗАНИЯ ПЛАТНОЙ УСЛУГИ
A9: Наименование | B9: Средняя заработная плата, включая начисления на выплаты по оплате труда, рублей в месяц | C9: Месячный фонд рабочего времени, минут | D9: Норма времени на оказание платной услуги, минут | E9: Затраты на оплату труда персонала, рублей
A10: должности
A11: 1 | B11: 2 | C11: 3 | D11: 4 | E11: 5
A12: воспитатель (Пархутова С.А.) | B12: 67839.48 | C12: 6300 | D12: 30 | E12: =B12/C12*D12 -> 323.05
A13: Итого | B13: X | C13: X | D13: X
A17: РАСЧЕТ
A18: ЗАТРАТ НА МАТЕРИАЛЬНЫЕ ЗАПАСЫ, ПОЛНОСТЬЮ ПОТРЕБЛЯЕМЫЕ
A19: В ПРОЦЕССЕ ОКАЗАНИЯ ПЛАТНОЙ УСЛУГИ (РАБОТЫ)
A21: Вид материальных запасов | B21: Наименование товара, составляющего материальный запас | C21: Единиц измерения | D21: Норма потребления | E21: Объем оказания платных услуг за норму времени | F21: Цена за единицу | G21: Всего затрат материальных запасов
A22: 1 | B22: 2 | C22: 3 | D22: 4 | E22: 5 | F22: 6 | G22: 7
A23: 1 | B23: шахматы | C23: шт. | D23: 1 | E23: =D23/30 -> 0.03 | F23: 500 | G23: =D23*E23*F23 -> 16.67
A24: =A23+1 -> 2 | B24: тетрадь | C24: шт. | D24: 1 | E24: =D24/30 -> 0.03 | F24: 10 | G24: =D24*E24*F24 -> 0.33
A25: =A24+1 -> 3 | B25: карандаши простые | C25: шт. | D25: 1 | E25: 0.03 | F25: 10 | G25: 0.33
A26: Итого | B26: X | C26: X | D26: X | F26: X | G26: =SUM(G23:G25) -> 17.33
A29: РАСЧЕТ
A30: СУММЫ НАЧИСЛЕННОЙ АМОРТИЗАЦИИ ОБОРУДОВАНИЯ,
A31: ИСПОЛЬЗУЕМОГО ПРИ ОКАЗАНИИ ПЛАТНОЙ УСЛУГИ (РАБОТЫ)
A33: Наименование оборудования | B33: Балансовая стоимость | C33: Годовая норма износа, процентов | D33: Годовая норма времени работы оборудования, часов | E33: Время работы оборудования в процессе оказания платной услуги, часов | F33: Сумма начисленной амортизации
A34: 1 | B34: 2 | C34: 3 | D34: 4 | E34: 5 | F34: 6
A35: …. | B35: …. | C35: …. | D35: …. | E35: …. | F35: ….
A36: …. | B36: …. | C36: …. | D36: …. | E36: …. | F36: ….
A37: Итого | B37: X | C37: X | D37: X | E37: X
A40: РАСЧЕТ
A41: НАКЛАДНЫХ ЗАТРАТ, НЕОБХОДИМЫХ ДЛЯ ОБЕСПЕЧЕНИЯ
A42: ДЕЯТЕЛЬНОСТИ УЧРЕЖДЕНИЯ ПРИ ОКАЗАНИИ
A43: ПЛАТНОЙ УСЛУГИ (РАБОТЫ)
A45: N | B45: Наименование статей затрат | C45: Сумма
A46: п/п
A47: 1 | B47: Прогноз затрат на административно-управленческий персонал | C47: 225897
A48: 2 | B48: Прогноз затрат общехозяйственного назначения | C48: 1892277.14
A49: 3 | B49: Прогноз суммы начисленной амортизации имущества общехозяйственного назначения | C49: 314048.02
A50: 4 | B50: Прогноз суммарного фонда оплаты труда основного персонала | C50: 21802406.46
A51: 5 | B51: Коэффициент накладных затрат | C51: =(C47+C48+C49)/C50 -> 0.112
A52: 6 | B52: Затраты на основной персонал, участвующий в предоставлении платной услуги | C52: 323.05
A53: 7 | B53: Итого накладных затрат | C53: =C52*C51 -> 36.04
A56: РАСЧЕТ
A57: ЦЕНЫ НА ОКАЗАНИЕ ПЛАТНОЙ УСЛУГИ (РАБОТЫ)
A58: Кружок "Неутомимые кони"
A59: N | B59: Наименование статей затрат | C59: Единица | D59: Показатель
A60: п/п | C60: измерения
A61: 1 | B61: Затраты на оплату труда основного персонала | C61: рублей | D61: =E12 -> 323.05
A62: 2 | B62: Затраты материальных запасов | C62: рублей | D62: =G26 -> 17.33
A63: 3 | B63: Сумма начисленной амортизации оборудования, | C63: рублей | D63: 0
B64: используемого при оказании платной услуги
A65: 4 | B65: Накладные затраты, относимые на платную услугу | C65: рублей | D65: =C53 -> 36.04
A66: 5 | B66: Итого затрат | C66: рублей | D66: =D65+D63+D62+D61 -> 376.42
A67: 6 | B67: Рентабельность | C67: процентов | D67: 20
A68: 7 | B68: Затраты с учетом рентабельности | C68: рублей | D68: =(D66*0.2)+D66 -> 452
A69: 8 | B69: Плановое количество оказываемых услуг | C69: штук | D69: 8
A70: 9 | B70: Цена платной услуги | C70: рублей за | D70: =D69*D68 -> 3613.60
C71: 1 услугу
A72: 10 | B72: Цена одного воспитанника в месяц | C72: рублей | D72: 1200

Sheet Веселые нотки
B1: на 2025-2026 учебный год
A2: Калькуляционный метод формирования цены на платные услуги
A5: РАСЧЕТ
A6: ЗАТРАТ НА ОПЛАТУ ТРУДА ОСНОВНОГО ПЕРСОНАЛА, НЕПОСРЕДСТВЕННО
A7: УЧАСТВУЮЩЕГО В ПРОЦЕССЕ ОКАЗАНИЯ ПЛАТНОЙ УСЛУГИ
A9: Наименование | B9: Средняя заработная плата, включая начисления на выплаты по оплате труда, рублей в месяц | C9: Месячный фонд рабочего времени, минут | D9: Норма времени на оказание платной услуги, минут | E9: Затраты на оплату труда персонала, рублей
A10: должности
A11: 1 | B11: 2 | C11: 3 | D11: 4 | E11: 5
A12: музыкальный руководитель Макарова Л.С..) | B12: 93379.58 | C12: 9072 | D12: 30 | E12: =B12/C12*D12 -> 308.79
A13: Итого | B13: X | C13: X | D13: X
A17: РАСЧЕТ
A18: ЗАТРАТ НА МАТЕРИАЛЬНЫЕ ЗАПАСЫ, ПОЛНОСТЬЮ ПОТРЕБЛЯЕМЫЕ
A19: В ПРОЦЕССЕ ОКАЗАНИЯ ПЛАТНОЙ УСЛУГИ (РАБОТЫ)
A21: Вид материальных запасов | B21: Наименование товара, составляющего материальный запас | C21: Единиц измерения | D21: Норма потребления | E21: Объем оказания платных услуг за норму времени | F21: Цена за единицу | G21: Всего затрат материальных запасов
A22: 1 | B22: 2 | C22: 3 | D22: 4 | E22: 5 | F22: 6 | G22: 7
A23: 1 | B23: флешка | C23: шт | D23: 1 | E23: =D23/30 -> 0.03 | F23: 520 | G23: =D23*E23*F23 -> 17.33
A24: 2 | B24: ноты | C24: шт | D24: 1 | E24: =D24/30 -> 0.03 | F24: 500 | G24: =D24*E24*F24 -> 16.67
A25: Итого | B25: X | C25: X | D25: X | F25: X | G25: =SUM(G23:G24) -> 34
A28: РАСЧЕТ
A29: СУММЫ НАЧИСЛЕННОЙ АМОРТИЗАЦИИ ОБОРУДОВАНИЯ,
A30: ИСПОЛЬЗУЕМОГО ПРИ ОКАЗАНИИ ПЛАТНОЙ УСЛУГИ (РАБОТЫ)
A32: Наименование оборудования | B32: Балансовая стоимость | C32: Годовая норма износа, процентов | D32: Годовая норма времени работы оборудования, часов | E32: Время работы оборудования в процессе оказания платной услуги, часов | F32: Сумма начисленной амортизации
A33: 1 | B33: 2 | C33: 3 | D33: 4 | E33: 5 | F33: 6
A34: …. | B34: …. | C34: …. | D34: …. | E34: …. | F34: ….
A35: …. | B35: …. | C35: …. | D35: …. | E35: …. | F35: ….
A36: Итого | B36: X | C36: X | D36: X | E36: X
A39: РАСЧЕТ
A40: НАКЛАДНЫХ ЗАТРАТ, НЕОБХОДИМЫХ ДЛЯ ОБЕСПЕЧЕНИЯ
A41: ДЕЯТЕЛЬНОСТИ УЧРЕЖДЕНИЯ ПРИ ОКАЗАНИИ
A42: ПЛАТНОЙ УСЛУГИ (РАБОТЫ)
A44: N | B44: Наименование статей затрат | C44: Сумма
A45: п/п
A46: 1 | B46: Прогноз затрат на административно-управленческий персонал | C46: 225897
A47: 2 | B47: Прогноз затрат общехозяйственного назначения | C47: 1892277.14
A48: 3 | B48: Прогноз суммы начисленной амортизации имущества общехозяйственного назначения | C48: 314048.02
A49: 4 | B49: Прогноз суммарного фонда оплаты труда основного персонала | C49: 21802406.46
A50: 5 | B50: Коэффициент накладных затрат | C50: =(C46+C47+C48)/C49 -> 0.112
A51: 6 | B51: Затраты на основной персонал, участвующий в предоставлении платной услуги | C51: =E12 -> 308.79
A52: 7 | B52: Итого накладных затрат | C52: =C51*C50 -> 34.45
A55: РАСЧЕТ
A56: ЦЕНЫ НА ОКАЗАНИЕ ПЛАТНОЙ УСЛУГИ (РАБОТЫ)
A57: Кружок "Веселые нотки"
A58: N | B58: Наименование статей затрат | C58: Единица | D58: Показатель
A59: п/п | C59: измерения
A60: 1 | B60: Затраты на оплату труда основного персонала | C60: рублей | D60: =E12 -> 308.79
A61: 2 | B61: Затраты материальных запасов | C61: рублей | D61: =G25 -> 34
A62: 3 | B62: Сумма начисленной амортизации оборудования, | C62: рублей | D62: 0
B63: используемого при оказании платной услуги
A64: 4 | B64: Накладные затраты, относимые на платную услугу | C64: рублей | D64: =C52 -> 34.45
A65: 5 | B65: Итого затрат | C65: рублей | D65: =D64+D62+D61+D60 -> 377.24
A66: 6 | B66: Рентабельность | C66: процентов | D66: 20
A67: 7 | B67: Затраты с учетом рентабельности | C67: рублей | D67: =(D65*0.2)+D65 -> 453
A68: 8 | B68: Плановое количество оказываемых услуг | C68: штук | D68: 8
A69: 9 | B69: Цена платной услуги | C69: рублей за | D69: =D68*D67 -> 3621.54
C70: 1 услугу
A71: 10 | B71: Цена одного воспитанника в месяц | C71: рублей | D71: 1200

Sheet Изо-студия "Улиточка"
B1: на 2025-2026 учебный год
A2: Калькуляционный метод формирования цены на платные услуги
A5: РАСЧЕТ
A6: ЗАТРАТ НА ОПЛАТУ ТРУДА ОСНОВНОГО ПЕРСОНАЛА, НЕПОСРЕДСТВЕННО
A7: УЧАСТВУЮЩЕГО В ПРОЦЕССЕ ОКАЗАНИЯ ПЛАТНОЙ УСЛУГИ
A9: Наименование | B9: Средняя заработная плата, включая начисления на выплаты по оплате труда, рублей в месяц | C9: Месячный фонд рабочего времени, минут | D9: Норма времени на оказание платной услуги, минут | E9: Затраты на оплату труда персонала, рублей
A10: должности
A11: 1 | B11: 2 | C11: 3 | D11: 4 | E11: 5
A12: воспитатель (Гильмуллина Г.Ф.) | B12: 64693.61 | C12: 9072 | D12: 30 | E12: =B12/C12*D12 -> 213.93
A13: Итого | B13: X | C13: X | D13: X
A17: РАСЧЕТ
A18: ЗАТРАТ НА МАТЕРИАЛЬНЫЕ ЗАПАСЫ, ПОЛНОСТЬЮ ПОТРЕБЛЯЕМЫЕ
A19: В ПРОЦЕССЕ ОКАЗАНИЯ ПЛАТНОЙ УСЛУГИ (РАБОТЫ)
A21: Вид материальных запасов | B21: Наименование товара, составляющего материальный запас | C21: Единиц измерения | D21: Норма потребления | E21: Объем оказания платных услуг за норму времени | F21: Цена за единицу | G21: Всего затрат материальных запасов
A22: 1 | B22: 2 | C22: 3 | D22: 4 | E22: 5 | F22: 6 | G22: 7
A23: 1 | B23: тетради | C23: шт | D23: 1 | E23: =D23/25 -> 0.04 | F23: 10 | G23: =D23*E23*F23 -> 0.40
A24: 2 | B24: карандаши простые | C24: шт | D24: 1 | E24: =D24/25 -> 0.04 | F24: 10 | G24: =D24*E24*F24 -> 0.40
A25: Итого | B25: X | C25: X | D25: X | F25: X | G25: =SUM(G23:G24) -> 0.80
A28: РАСЧЕТ
A29: СУММЫ НАЧИСЛЕННОЙ АМОРТИЗАЦИИ ОБОРУДОВАНИЯ,
A30: ИСПОЛЬЗУЕМОГО ПРИ ОКАЗАНИИ ПЛАТНОЙ УСЛУГИ (РАБОТЫ)
A32: Наименование оборудования | B32: Балансовая стоимость | C32: Годовая норма износа, процентов | D32: Годовая норма времени работы оборудования, часов | E32: Время работы оборудования в процессе оказания платной услуги, часов | F32: Сумма начисленной амортизации
A33: 1 | B33: 2 | C33: 3 | D33: 4 | E33: 5 | F33: 6
A34: …. | B34: …. | C34: …. | D34: …. | E34: …. | F34: ….
A35: …. | B35: …. | C35: …. | D35: …. | E35: …. | F35: ….
A36: Итого | B36: X | C36: X | D36: X | E36: X
A39: РАСЧЕТ
A40: НАКЛАДНЫХ ЗАТРАТ, НЕОБХОДИМЫХ ДЛЯ ОБЕСПЕЧЕНИЯ
A41: ДЕЯТЕЛЬНОСТИ УЧРЕЖДЕНИЯ ПРИ ОКАЗАНИИ
A42: ПЛАТНОЙ УСЛУГИ (РАБОТЫ)
A44: N | B44: Наименование статей затрат | C44: Сумма
A45: п/п
A46: 1 | B46: Прогноз затрат на административно-управленческий персонал | C46: 225897
A47: 2 | B47: Прогноз затрат общехозяйственного назначения | C47: 1892277.14
A48: 3 | B48: Прогноз суммы начисленной амортизации имущества общехозяйственного назначения | C48: 314048.02
A49: 4 | B49: Прогноз суммарного фонда оплаты труда основного персонала | C49: 21802406.46
A50: 5 | B50: Коэффициент накладных затрат | C50: =(C46+C47+C48)/C49 -> 0.112
A51: 6 | B51: Затраты на основной персонал, участвующий в предоставлении платной услуги | C51: =E12 -> 213.93
A52: 7 | B52: Итого накладных затрат | C52: =C51*C50 -> 23.87
A55: РАСЧЕТ
A56: ЦЕНЫ НА ОКАЗАНИЕ ПЛАТНОЙ УСЛУГИ (РАБОТЫ)
A57: Кружок "Изо-студия "Улиточка""
A58: N | B58: Наименование статей затрат | C58: Единица | D58: Показатель
A59: п/п | C59: измерения
A60: 1 | B60: Затраты на оплату труда основного персонала | C60: рублей | D60: =E12 -> 213.93
A61: 2 | B61: Затраты материальных запасов | C61: рублей | D61: =G25 -> 0.8
A62: 3 | B62: Сумма начисленной амортизации оборудования, | C62: рублей | D62: 0
B63: используемого при оказании платной услуги
A64: 4 | B64: Накладные затраты, относимые на платную услугу | C64: рублей | D64: =C52 -> 23.87
A65: 5 | B65: Итого затрат | C65: рублей | D65: =D64+D62+D61+D60 -> 238.60
A66: 6 | B66: Рентабельность | C66: процентов | D66: 20
A67: 7 | B67: Затраты с учетом рентабельности | C67: рублей | D67: =(D65*0.2)+D65 -> 286
A68: 8 | B68: Плановое количество оказываемых услуг | C68: штук | D68: 4
A69: 9 | B69: Цена платной услуги | C69: рублей за | D69: =D68*D67 -> 1145.28
C70: 1 услугу
A71: 10 | B71: Цена одного воспитанника в месяц | C71: рублей | D71: 1000

Sheet читалочка
B1: на 2025-2026 учебный год
A2: Калькуляционный метод формирования цены на платные услуги
A5: РАСЧЕТ
A6: ЗАТРАТ НА ОПЛАТУ ТРУДА ОСНОВНОГО ПЕРСОНАЛА, НЕПОСРЕДСТВЕННО
A7: УЧАСТВУЮЩЕГО В ПРОЦЕССЕ ОКАЗАНИЯ ПЛАТНОЙ УСЛУГИ
A9: Наименование | B9: Средняя заработная плата, включая начисления на выплаты по оплате труда, рублей в месяц | C9: Месячный фонд рабочего времени, минут | D9: Норма времени на оказание платной услуги, минут | E9: Затраты на оплату труда персонала, рублей
A10: должности
A11: 1 | B11: 2 | C11: 3 | D11: 4 | E11: 5
A12: воспитатель (Закирова И.А..) | B12: 64906.36 | C12: 5040 | D12: 30 | E12: =B12/C12*D12 -> 386.35
A13: Итого | B13: X | C13: X | D13: X
A17: РАСЧЕТ
A18: ЗАТРАТ НА МАТЕРИАЛЬНЫЕ ЗАПАСЫ, ПОЛНОСТЬЮ ПОТРЕБЛЯЕМЫЕ
A19: В ПРОЦЕССЕ ОКАЗАНИЯ ПЛАТНОЙ УСЛУГИ (РАБОТЫ)
A21: Вид материальных запасов | B21: Наименование товара, составляющего материальный запас | C21: Единиц измерения | D21: Норма потребления | E21: Объем оказания платных услуг за норму времени | F21: Цена за единицу | G21: Всего затрат материальных запасов
A22: 1 | B22: 2 | C22: 3 | D22: 4 | E22: 5 | F22: 6 | G22: 7
A23: 1 | B23: тетради | C23: шт | D23: 1 | E23: =D23/25 -> 0.04 | F23: 10 | G23: =D23*E23*F23 -> 0.40
A24: 2 | B24: карандаши простые | C24: шт | D24: 1 | E24: =D24/25 -> 0.04 | F24: 10 | G24: =D24*E24*F24 -> 0.40
A25: Итого | B25: X | C25: X | D25: X | F25: X | G25: =SUM(G23:G24) -> 0.80
A28: РАСЧЕТ
A29: СУММЫ НАЧИСЛЕННОЙ АМОРТИЗАЦИИ ОБОРУДОВАНИЯ,
A30: ИСПОЛЬЗУЕМОГО ПРИ ОКАЗАНИИ ПЛАТНОЙ УСЛУГИ (РАБОТЫ)
A32: Наименование оборудования | B32: Балансовая стоимость | C32: Годовая норма износа, процентов | D32: Годовая норма времени работы оборудования, часов | E32: Время работы оборудования в процессе оказания платной услуги, часов | F32: Сумма начисленной амортизации
A33: 1 | B33: 2 | C33: 3 | D33: 4 | E33: 5 | F33: 6
A34: …. | B34: …. | C34: …. | D34: …. | E34: …. | F34: ….
A35: …. | B35: …. | C35: …. | D35: …. | E35: …. | F35: ….
A36: Итого | B36: X | C36: X | D36: X | E36: X
A39: РАСЧЕТ
A40: НАКЛАДНЫХ ЗАТРАТ, НЕОБХОДИМЫХ ДЛЯ ОБЕСПЕЧЕНИЯ
A41: ДЕЯТЕЛЬНОСТИ УЧРЕЖДЕНИЯ ПРИ ОКАЗАНИИ
A42: ПЛАТНОЙ УСЛУГИ (РАБОТЫ)
A44: N | B44: Наименование статей затрат | C44: Сумма
A45: п/п
A46: 1 | B46: Прогноз затрат на административно-управленческий персонал | C46: 225897
A47: 2 | B47: Прогноз затрат общехозяйственного назначения | C47: 1892277.14
A48: 3 | B48: Прогноз суммы начисленной амортизации имущества общехозяйственного назначения | C48: 314048.02
A49: 4 | B49: Прогноз суммарного фонда оплаты труда основного персонала | C49: 21802406.46
A50: 5 | B50: Коэффициент накладных затрат | C50: =(C46+C47+C48)/C49 -> 0.112
A51: 6 | B51: Затраты на основной персонал, участвующий в предоставлении платной услуги | C51: =E12 -> 386.35
A52: 7 | B52: Итого накладных затрат | C52: =C51*C50 -> 43.10
A55: РАСЧЕТ
A56: ЦЕНЫ НА ОКАЗАНИЕ ПЛАТНОЙ УСЛУГИ (РАБОТЫ)
A57: Кружок "Грамотейка"
A58: N | B58: Наименование статей затрат | C58: Единица | D58: Показатель
A59: п/п | C59: измерения
A60: 1 | B60: Затраты на оплату труда основного персонала | C60: рублей | D60: =E12 -> 386.35
A61: 2 | B61: Затраты материальных запасов | C61: рублей | D61: =G25 -> 0.8
A62: 3 | B62: Сумма начисленной амортизации оборудования, | C62: рублей | D62: 0
B63: используемого при оказании платной услуги
A64: 4 | B64: Накладные затраты, относимые на платную услугу | C64: рублей | D64: =C52 -> 43.10
A65: 5 | B65: Итого затрат | C65: рублей | D65: =D64+D62+D61+D60 -> 430.25
A66: 6 | B66: Рентабельность | C66: процентов | D66: 20
A67: 7 | B67: Затраты с учетом рентабельности | C67: рублей | D67: =(D65*0.2)+D65 -> 516
A68: 8 | B68: Плановое количество оказываемых услуг | C68: штук | D68: 4
A69: 9 | B69: Цена платной услуги | C69: рублей за | D69: =D68*D67 -> 2065.19
C70: 1 услугу
A71: 10 | B71: Цена одного воспитанника в месяц | C71: рублей | D71: 1360

Sheet Умелые пальчики
B1: на 2025-2026 учебный год
A2: Калькуляционный метод формирования цены на платные услуги
A5: РАСЧЕТ
A6: ЗАТРАТ НА ОПЛАТУ ТРУДА ОСНОВНОГО ПЕРСОНАЛА, НЕПОСРЕДСТВЕННО
A7: УЧАСТВУЮЩЕГО В ПРОЦЕССЕ ОКАЗАНИЯ ПЛАТНОЙ УСЛУГИ
A9: Наименование | B9: Средняя заработная плата, включая начисления на выплаты по оплате труда, рублей в месяц | C9: Месячный фонд рабочего времени, минут | D9: Норма времени на оказание платной услуги, минут | E9: Затраты на оплату труда персонала, рублей
A10: должности
A11: 1 | B11: 2 | C11: 3 | D11: 4 | E11: 5
A12: воспитатель (Понькина О.В) | B12: 66621.04 | C12: 6300 | D12: 30 | E12: =B12/C12*D12 -> 317.24
A13: Итого | B13: X | C13: X | D13: X
A17: РАСЧЕТ
A18: ЗАТРАТ НА МАТЕРИАЛЬНЫЕ ЗАПАСЫ, ПОЛНОСТЬЮ ПОТРЕБЛЯЕМЫЕ
A19: В ПРОЦЕССЕ ОКАЗАНИЯ ПЛАТНОЙ УСЛУГИ (РАБОТЫ)
A21: Вид материальных запасов | B21: Наименование товара, составляющего материальный запас | C21: Единиц измерения | D21: Норма потребления | E21: Объем оказания платных услуг за норму времени | F21: Цена за единицу | G21: Всего затрат материальных запасов
A22: 1 | B22: 2 | C22: 3 | D22: 4 | E22: 5 | F22: 6 | G22: 7
A23: 1 | B23: тетради | C23: шт | D23: 1 | E23: =D23/25 -> 0.04 | F23: 10 | G23: =D23*E23*F23 -> 0.40
A24: 2 | B24: карандаши простые | C24: шт | D24: 1 | E24: =D24/25 -> 0.04 | F24: 10 | G24: =D24*E24*F24 -> 0.40
A25: Итого | B25: X | C25: X | D25: X | F25: X | G25: =SUM(G23:G24) -> 0.80
A28: РАСЧЕТ
A29: СУММЫ НАЧИСЛЕННОЙ АМОРТИЗАЦИИ ОБОРУДОВАНИЯ,
A30: ИСПОЛЬЗУЕМОГО ПРИ ОКАЗАНИИ ПЛАТНОЙ УСЛУГИ (РАБОТЫ)
A32: Наименование оборудования | B32: Балансовая стоимость | C32: Годовая норма износа, процентов | D32: Годовая норма времени работы оборудования, часов | E32: Время работы оборудования в процессе оказания платной услуги, часов | F32: Сумма начисленной амортизации
A33: 1 | B33: 2 | C33: 3 | D33: 4 | E33: 5 | F33: 6
A34: …. | B34: …. | C34: …. | D34: …. | E34: …. | F34: ….
A35: …. | B35: …. | C35: …. | D35: …. | E35: …. | F35: ….
A36: Итого | B36: X | C36: X | D36: X | E36: X
A39: РАСЧЕТ
A40: НАКЛАДНЫХ ЗАТРАТ, НЕОБХОДИМЫХ ДЛЯ ОБЕСПЕЧЕНИЯ
A41: ДЕЯТЕЛЬНОСТИ УЧРЕЖДЕНИЯ ПРИ ОКАЗАНИИ
A42: ПЛАТНОЙ УСЛУГИ (РАБОТЫ)
A44: N | B44: Наименование статей затрат | C44: Сумма
A45: п/п
A46: 1 | B46: Прогноз затрат на административно-управленческий персонал | C46: 225897
A47: 2 | B47: Прогноз затрат общехозяйственного назначения | C47: 1892277.14
A48: 3 | B48: Прогноз суммы начисленной амортизации имущества общехозяйственного назначения | C48: 314048.02
A49: 4 | B49: Прогноз суммарного фонда оплаты труда основного персонала | C49: 21802406.46
A50: 5 | B50: Коэффициент накладных затрат | C50: =(C46+C47+C48)/C49 -> 0.112
A51: 6 | B51: Затраты на основной персонал, участвующий в предоставлении платной услуги | C51: =E12 -> 317.24
A52: 7 | B52: Итого накладных затрат | C52: =C51*C50 -> 35.39
A55: РАСЧЕТ
A56: ЦЕНЫ НА ОКАЗАНИЕ ПЛАТНОЙ УСЛУГИ (РАБОТЫ)
A57: Кружок "Подготовка к школе"
A58: N | B58: Наименование статей затрат | C58: Единица | D58: Показатель
A59: п/п | C59: измерения
A60: 1 | B60: Затраты на оплату труда основного персонала | C60: рублей | D60: =E12 -> 317.24
A61: 2 | B61: Затраты материальных запасов | C61: рублей | D61: =G25 -> 0.8
A62: 3 | B62: Сумма начисленной амортизации оборудования, | C62: рублей | D62: 0
B63: используемого при оказании платной услуги
A64: 4 | B64: Накладные затраты, относимые на платную услугу | C64: рублей | D64: =C52 -> 35.39
A65: 5 | B65: Итого затрат | C65: рублей | D65: =D64+D62+D61+D60 -> 353.43
A66: 6 | B66: Рентабельность | C66: процентов | D66: 20
A67: 7 | B67: Затраты с учетом рентабельности | C67: рублей | D67: =(D65*0.2)+D65 -> 424
A68: 8 | B68: Плановое количество оказываемых услуг | C68: штук | D68: 4
A69: 9 | B69: Цена платной услуги | C69: рублей за | D69: =D68*D67 -> 1696.48
C70: 1 услугу
A71: 10 | B71: Цена одного воспитанника в месяц | C71: рублей | D71: 600

Sheet Ладушки
B1: на 2025-2026 учебный год
A2: Калькуляционный метод формирования цены на платные услуги
A5: РАСЧЕТ
A6: ЗАТРАТ НА ОПЛАТУ ТРУДА ОСНОВНОГО ПЕРСОНАЛА, НЕПОСРЕДСТВЕННО
A7: УЧАСТВУЮЩЕГО В ПРОЦЕССЕ ОКАЗАНИЯ ПЛАТНОЙ УСЛУГИ
A9: Наименование | B9: Средняя заработная плата, включая начисления на выплаты по оплате труда, рублей в месяц | C9: Месячный фонд рабочего времени, минут | D9: Норма времени на оказание платной услуги, минут | E9: Затраты на оплату труда персонала, рублей
A10: должности
A11: 1 | B11: 2 | C11: 3 | D11: 4 | E11: 5
A12: воспитатель Данилова) | B12: 90920.82 | C12: 9072 | D12: 30 | E12: =B12/C12*D12 -> 300.66
A13: Итого | B13: X | C13: X | D13: X
A17: РАСЧЕТ
A18: ЗАТРАТ НА МАТЕРИАЛЬНЫЕ ЗАПАСЫ, ПОЛНОСТЬЮ ПОТРЕБЛЯЕМЫЕ
A19: В ПРОЦЕССЕ ОКАЗАНИЯ ПЛАТНОЙ УСЛУГИ (РАБОТЫ)
A21: Вид материальных запасов | B21: Наименование товара, составляющего материальный запас | C21: Единиц измерения | D21: Норма потребления | E21: Объем оказания платных услуг за норму времени | F21: Цена за единицу | G21: Всего затрат материальных запасов
A22: 1 | B22: 2 | C22: 3 | D22: 4 | E22: 5 | F22: 6 | G22: 7
A23: 1 | B23: тетради | C23: шт | D23: 1 | E23: =D23/25 -> 0.04 | F23: 50 | G23: =D23*E23*F23 -> 2.00
A24: 2 | B24: карандаши простые | C24: шт | D24: 1 | E24: =D24/25 -> 0.04 | F24: 10 | G24: =D24*E24*F24 -> 0.40
A25: Итого | B25: X | C25: X | D25: X | F25: X | G25: =SUM(G23:G24) -> 2.40
A28: РАСЧЕТ
A29: СУММЫ НАЧИСЛЕННОЙ АМОРТИЗАЦИИ ОБОРУДОВАНИЯ,
A30: ИСПОЛЬЗУЕМОГО ПРИ ОКАЗАНИИ ПЛАТНОЙ УСЛУГИ (РАБОТЫ)
A32: Наименование оборудования | B32: Балансовая стоимость | C32: Годовая норма износа, процентов | D32: Годовая норма времени работы оборудования, часов | E32: Время работы оборудования в процессе оказания платной услуги, часов | F32: Сумма начисленной амортизации
A33: 1 | B33: 2 | C33: 3 | D33: 4 | E33: 5 | F33: 6
A34: …. | B34: …. | C34: …. | D34: …. | E34: …. | F34: ….
A35: …. | B35: …. | C35: …. | D35: …. | E35: …. | F35: ….
A36: Итого | B36: X | C36: X | D36: X | E36: X
A39: РАСЧЕТ
A40: НАКЛАДНЫХ ЗАТРАТ, НЕОБХОДИМЫХ ДЛЯ ОБЕСПЕЧЕНИЯ
A41: ДЕЯТЕЛЬНОСТИ УЧРЕЖДЕНИЯ ПРИ ОКАЗАНИИ
A42: ПЛАТНОЙ УСЛУГИ (РАБОТЫ)
A44: N | B44: Наименование статей затрат | C44: Сумма
A45: п/п
A46: 1 | B46: Прогноз затрат на административно-управленческий персонал | C46: 225897
A47: 2 | B47: Прогноз затрат общехозяйственного назначения | C47: 1892277.14
A48: 3 | B48: Прогноз суммы начисленной амортизации имущества общехозяйственного назначения | C48: 314048.02
A49: 4 | B49: Прогноз суммарного фонда оплаты труда основного персонала | C49: 21802406.46
A50: 5 | B50: Коэффициент накладных затрат | C50: =(C46+C47+C48)/C49 -> 0.112
A51: 6 | B51: Затраты на основной персонал, участвующий в предоставлении платной услуги | C51: =E12 -> 300.66
A52: 7 | B52: Итого накладных затрат | C52: =C51*C50 -> 33.54
A55: РАСЧЕТ
A56: ЦЕНЫ НА ОКАЗАНИЕ ПЛАТНОЙ УСЛУГИ (РАБОТЫ)
A57: Кружок "Веселые мячики "Су-джок""
A58: N | B58: Наименование статей затрат | C58: Единица | D58: Показатель
A59: п/п | C59: измерения
A60: 1 | B60: Затраты на оплату труда основного персонала | C60: рублей | D60: =E12 -> 300.66
A61: 2 | B61: Затраты материальных запасов | C61: рублей | D61: =G25 -> 2.4
A62: 3 | B62: Сумма начисленной амортизации оборудования, | C62: рублей | D62: 0
B63: используемого при оказании платной услуги
A64: 4 | B64: Накладные затраты, относимые на платную услугу | C64: рублей | D64: =C52 -> 33.54
A65: 5 | B65: Итого затрат | C65: рублей | D65: =D64+D62+D61+D60 -> 336.61
A66: 6 | B66: Рентабельность | C66: процентов | D66: 20
A67: 7 | B67: Затраты с учетом рентабельности | C67: рублей | D67: =(D65*0.2)+D65 -> 404
A68: 8 | B68: Плановое количество оказываемых услуг | C68: штук | D68: 8
A69: 9 | B69: Цена платной услуги | C69: рублей за | D69: =D68*D67 -> 3231.41
C70: 1 услугу
A71: 10 | B71: Цена одного воспитанника в месяц | C71: рублей | D71: 1200

Sheet анг.яз
B1: на 2025-2026 учебный год
A2: Калькуляционный метод формирования цены на платные услуги
A5: РАСЧЕТ
A6: ЗАТРАТ НА ОПЛАТУ ТРУДА ОСНОВНОГО ПЕРСОНАЛА, НЕПОСРЕДСТВЕННО
A7: УЧАСТВУЮЩЕГО В ПРОЦЕССЕ ОКАЗАНИЯ ПЛАТНОЙ УСЛУГИ
A9: Наименование | B9: Средняя заработная плата, включая начисления на выплаты по оплате труда, рублей в месяц | C9: Месячный фонд рабочего времени, минут | D9: Норма времени на оказание платной услуги, минут | E9: Затраты на оплату труда персонала, рублей
A10: должности
A11: 1 | B11: 2 | C11: 3 | D11: 4 | E11: 5
A12: воспитатель | B12: 30000 | C12: 6300 | D12: 30 | E12: =B12/C12*D12 -> 142.86
A13: Итого | B13: X | C13: X | D13: X
A17: РАСЧЕТ
A18: ЗАТРАТ НА МАТЕРИАЛЬНЫЕ ЗАПАСЫ, ПОЛНОСТЬЮ ПОТРЕБЛЯЕМЫЕ
A19: В ПРОЦЕССЕ ОКАЗАНИЯ ПЛАТНОЙ УСЛУГИ (РАБОТЫ)
A21: Вид материальных запасов | B21: Наименование товара, составляющего материальный запас | C21: Единиц измерения | D21: Норма потребления | E21: Объем оказания платных услуг за норму времени | F21: Цена за единицу | G21: Всего затрат материальных запасов
A22: 1 | B22: 2 | C22: 3 | D22: 4 | E22: 5 | F22: 6 | G22: 7
A23: 1 | B23: тетради | C23: шт | D23: 1 | E23: =D23/25 -> 0.04 | F23: 50 | G23: =D23*E23*F23 -> 2.00
A24: 2 | B24: карандаши простые | C24: шт | D24: 1 | E24: =D24/25 -> 0.04 | F24: 10 | G24: =D24*E24*F24 -> 0.40
A25: Итого | B25: X | C25: X | D25: X | F25: X | G25: =SUM(G23:G24) -> 2.40
A28: РАСЧЕТ
A29: СУММЫ НАЧИСЛЕННОЙ АМОРТИЗАЦИИ ОБОРУДОВАНИЯ,
A30: ИСПОЛЬЗУЕМОГО ПРИ ОКАЗАНИИ ПЛАТНОЙ УСЛУГИ (РАБОТЫ)
A32: Наименование оборудования | B32: Балансовая стоимость | C32: Годовая норма износа, процентов | D32: Годовая норма времени работы оборудования, часов | E32: Время работы оборудования в процессе оказания платной услуги, часов | F32: Сумма начисленной амортизации
A33: 1 | B33: 2 | C33: 3 | D33: 4 | E33: 5 | F33: 6
A34: …. | B34: …. | C34: …. | D34: …. | E34: …. | F34: ….
A35: …. | B35: …. | C35: …. | D35: …. | E35: …. | F35: ….
A36: Итого | B36: X | C36: X | D36: X | E36: X
A39: РАСЧЕТ
A40: НАКЛАДНЫХ ЗАТРАТ, НЕОБХОДИМЫХ ДЛЯ ОБЕСПЕЧЕНИЯ
A41: ДЕЯТЕЛЬНОСТИ УЧРЕЖДЕНИЯ ПРИ ОКАЗАНИИ
A42: ПЛАТНОЙ УСЛУГИ (РАБОТЫ)
A44: N | B44: Наименование статей затрат | C44: Сумма
A45: п/п
A46: 1 | B46: Прогноз затрат на административно-управленческий персонал | C46: 1517667.39
A47: 2 | B47: Прогноз затрат общехозяйственного назначения | C47: 2225836.68
A48: 3 | B48: Прогноз суммы начисленной амортизации имущества общехозяйственного назначения | C48: 453440.52
A49: 4 | B49: Прогноз суммарного фонда оплаты труда основного персонала | C49: 14073196.25
A50: 5 | B50: Коэффициент накладных затрат | C50: =(C46+C47+C48)/C49 -> 0.298
A51: 6 | B51: Затраты на основной персонал, участвующий в предоставлении платной услуги | C51: =E12 -> 142.86
A52: 7 | B52: Итого накладных затрат | C52: =C51*C50 -> 42.60
A55: РАСЧЕТ
A56: ЦЕНЫ НА ОКАЗАНИЕ ПЛАТНОЙ УСЛУГИ (РАБОТЫ)
A57: Кружок "Оригами"
A58: N | B58: Наименование статей затрат | C58: Единица | D58: Показатель
A59: п/п | C59: измерения
A60: 1 | B60: Затраты на оплату труда основного персонала | C60: рублей | D60: =E12 -> 142.86
A61: 2 | B61: Затраты материальных запасов | C61: рублей | D61: =G25 -> 2.4
A62: 3 | B62: Сумма начисленной амортизации оборудования, | C62: рублей | D62: 0
B63: используемого при оказании платной услуги
A64: 4 | B64: Накладные затраты, относимые на платную услугу | C64: рублей | D64: =C52 -> 42.60
A65: 5 | B65: Итого затрат | C65: рублей | D65: =D64+D62+D61+D60 -> 187.86
A66: 6 | B66: Рентабельность | C66: процентов | D66: 20
A67: 7 | B67: Затраты с учетом рентабельности | C67: рублей | D67: =(D65*0.2)+D65 -> 225
A68: 8 | B68: Плановое количество оказываемых услуг | C68: штук | D68: 8
A69: 9 | B69: Цена платной услуги | C69: рублей за | D69: =D68*D67 -> 1803.46
C70: 1 услугу
A71: 10 | B71: Цена одного воспитанника в месяц | C71: рублей | D71: 1360

Sheet Логомассаж
B1: на 2025-2026 учебный год
A2: Калькуляционный метод формирования цены на платные услуги
A5: РАСЧЕТ
A6: ЗАТРАТ НА ОПЛАТУ ТРУДА ОСНОВНОГО ПЕРСОНАЛА, НЕПОСРЕДСТВЕННО
A7: УЧАСТВУЮЩЕГО В ПРОЦЕССЕ ОКАЗАНИЯ ПЛАТНОЙ УСЛУГИ
A9: Наименование | B9: Средняя заработная плата, включая начисления на выплаты по оплате труда, рублей в месяц | C9: Месячный фонд рабочего времени, минут | D9: Норма времени на оказание платной услуги, минут | E9: Затраты на оплату труда персонала, рублей
A10: должности
A11: 1 | B11: 2 | C11: 3 | D11: 4 | E11: 5
A12: воспитатель (Валиуллина.) | B12: 63967.44 | C12: 5040 | D12: 30 | E12: =B12/C12*D12 -> 380.76
A13: Итого | B13: X | C13: X | D13: X
A17: РАСЧЕТ
A18: ЗАТРАТ НА МАТЕРИАЛЬНЫЕ ЗАПАСЫ, ПОЛНОСТЬЮ ПОТРЕБЛЯЕМЫЕ
A19: В ПРОЦЕССЕ ОКАЗАНИЯ ПЛАТНОЙ УСЛУГИ (РАБОТЫ)
A21: Вид материальных запасов | B21: Наименование товара, составляющего материальный запас | C21: Единиц измерения | D21: Норма потребления | E21: Объем оказания платных услуг за норму времени | F21: Цена за единицу | G21: Всего затрат материальных запасов
A22: 1 | B22: 2 | C22: 3 | D22: 4 | E22: 5 | F22: 6 | G22: 7
A23: 1 | B23: тетради | C23: шт | D23: 1 | E23: =D23/25 -> 0.04 | F23: 10 | G23: =D23*E23*F23 -> 0.40
A24: 2 | B24: карандаши простые | C24: шт | D24: 1 | E24: =D24/25 -> 0.04 | F24: 10 | G24: =D24*E24*F24 -> 0.40
A25: Итого | B25: X | C25: X | D25: X | F25: X | G25: =SUM(G23:G24) -> 0.80
A28: РАСЧЕТ
A29: СУММЫ НАЧИСЛЕННОЙ АМОРТИЗАЦИИ ОБОРУДОВАНИЯ,
A30: ИСПОЛЬЗУЕМОГО ПРИ ОКАЗАНИИ ПЛАТНОЙ УСЛУГИ (РАБОТЫ)
A32: Наименование оборудования | B32: Балансовая стоимость | C32: Годовая норма износа, процентов | D32: Годовая норма времени работы оборудования, часов | E32: Время работы оборудования в процессе оказания платной услуги, часов | F32: Сумма начисленной амортизации
A33: 1 | B33: 2 | C33: 3 | D33: 4 | E33: 5 | F33: 6
A34: …. | B34: …. | C34: …. | D34: …. | E34: …. | F34: ….
A35: …. | B35: …. | C35: …. | D35: …. | E35: …. | F35: ….
A36: Итого | B36: X | C36: X | D36: X | E36: X
A39: РАСЧЕТ
A40: НАКЛАДНЫХ ЗАТРАТ, НЕОБХОДИМЫХ ДЛЯ ОБЕСПЕЧЕНИЯ
A41: ДЕЯТЕЛЬНОСТИ УЧРЕЖДЕНИЯ ПРИ ОКАЗАНИИ
A42: ПЛАТНОЙ УСЛУГИ (РАБОТЫ)
A44: N | B44: Наименование статей затрат | C44: Сумма
A45: п/п
A46: 1 | B46: Прогноз затрат на административно-управленческий персонал | C46: 225897
A47: 2 | B47: Прогноз затрат общехозяйственного назначения | C47: 1892277.14
A48: 3 | B48: Прогноз суммы начисленной амортизации имущества общехозяйственного назначения | C48: 314048.02
A49: 4 | B49: Прогноз суммарного фонда оплаты труда основного персонала | C49: 21802406.46
A50: 5 | B50: Коэффициент накладных затрат | C50: =(C46+C47+C48)/C49 -> 0.112
A51: 6 | B51: Затраты на основной персонал, участвующий в предоставлении платной услуги | C51: =E12 -> 380.76
A52: 7 | B52: Итого накладных затрат | C52: =C51*C50 -> 42.48
A55: РАСЧЕТ
A56: ЦЕНЫ НА ОКАЗАНИЕ ПЛАТНОЙ УСЛУГИ (РАБОТЫ)
A57: Оздоровительный курс "Логомассаж"
A58: N | B58: Наименование статей затрат | C58: Единица | D58: Показатель
A59: п/п | C59: измерения
A60: 1 | B60: Затраты на оплату труда основного персонала | C60: рублей | D60: =E12 -> 380.76
A61: 2 | B61: Затраты материальных запасов | C61: рублей | D61: =G25 -> 0.8
A62: 3 | B62: Сумма начисленной амортизации оборудования, | C62: рублей | D62: 0
B63: используемого при оказании платной услуги
A64: 4 | B64: Накладные затраты, относимые на платную услугу | C64: рублей | D64: =C52 -> 42.48
A65: 5 | B65: Итого затрат | C65: рублей | D65: =D64+D62+D61+D60 -> 424.04
A66: 6 | B66: Рентабельность | C66: процентов | D66: 20
A67: 7 | B67: Затраты с учетом рентабельности | C67: рублей | D67: =(D65*0.2)+D65 -> 509
A68: 8 | B68: Плановое количество оказываемых услуг | C68: штук | D68: 10
A69: 9 | B69: Цена платной услуги | C69: рублей за | D69: =D68*D67 -> 5088.42
C70: 1 услугу
A71: 10 | B71: Цена одного воспитанника в месяц | C71: рублей | D71: 5000

Sheet адаптац.группа
B1: на 2025-2026 учебный год
A2: Калькуляционный метод формирования цены на платные услуги
A5: РАСЧЕТ
A6: ЗАТРАТ НА ОПЛАТУ ТРУДА ОСНОВНОГО ПЕРСОНАЛА, НЕПОСРЕДСТВЕННО
A7: УЧАСТВУЮЩЕГО В ПРОЦЕССЕ ОКАЗАНИЯ ПЛАТНОЙ УСЛУГИ
A9: Наименование | B9: Средняя заработная плата, включая начисления на выплаты по оплате труда, рублей в месяц | C9: Месячный фонд рабочего времени, минут | D9: Норма времени на оказание платной услуги, минут | E9: Затраты на оплату труда персонала, рублей
A10: должности
A11: 1 | B11: 2 | C11: 3 | D11: 4 | E11: 5
A12: воспитатель | B12: 63896.62 | C12: 9072 | D12: 30 | E12: =B12/C12*D12 -> 211.30
A13: Итого | B13: X | C13: X | D13: X
A17: РАСЧЕТ
A18: ЗАТРАТ НА МАТЕРИАЛЬНЫЕ ЗАПАСЫ, ПОЛНОСТЬЮ ПОТРЕБЛЯЕМЫЕ
A19: В ПРОЦЕССЕ ОКАЗАНИЯ ПЛАТНОЙ УСЛУГИ (РАБОТЫ)
A21: Вид материальных запасов | B21: Наименование товара, составляющего материальный запас | C21: Единиц измерения | D21: Норма потребления | E21: Объем оказания платных услуг за норму времени | F21: Цена за единицу | G21: Всего затрат материальных запасов
A22: 1 | B22: 2 | C22: 3 | D22: 4 | E22: 5 | F22: 6 | G22: 7
A23: 1 | B23: тетради | C23: шт | D23: 1 | E23: =D23/25 -> 0.04 | F23: 0 | G23: =D23*E23*F23 -> 0.00
A24: 2 | B24: карандаши простые | C24: шт | D24: 1 | E24: =D24/25 -> 0.04 | F24: 0 | G24: =D24*E24*F24 -> 0.00
A25: Итого | B25: X | C25: X | D25: X | F25: X | G25: =SUM(G23:G24) -> 0.00
A28: РАСЧЕТ
A29: СУММЫ НАЧИСЛЕННОЙ АМОРТИЗАЦИИ ОБОРУДОВАНИЯ,
A30: ИСПОЛЬЗУЕМОГО ПРИ ОКАЗАНИИ ПЛАТНОЙ УСЛУГИ (РАБОТЫ)
A32: Наименование оборудования | B32: Балансовая стоимость | C32: Годовая норма износа, процентов | D32: Годовая норма времени работы оборудования, часов | E32: Время работы оборудования в процессе оказания платной услуги, часов | F32: Сумма начисленной амортизации
A33: 1 | B33: 2 | C33: 3 | D33: 4 | E33: 5 | F33: 6
A34: …. | B34: …. | C34: …. | D34: …. | E34: …. | F34: ….
A35: …. | B35: …. | C35: …. | D35: …. | E35: …. | F35: ….
A36: Итого | B36: X | C36: X | D36: X | E36: X
A39: РАСЧЕТ
A40: НАКЛАДНЫХ ЗАТРАТ, НЕОБХОДИМЫХ ДЛЯ ОБЕСПЕЧЕНИЯ
A41: ДЕЯТЕЛЬНОСТИ УЧРЕЖДЕНИЯ ПРИ ОКАЗАНИИ
A42: ПЛАТНОЙ УСЛУГИ (РАБОТЫ)
A44: N | B44: Наименование статей затрат | C44: Сумма
A45: п/п
A46: 1 | B46: Прогноз затрат на административно-управленческий персонал | C46: 225897
A47: 2 | B47: Прогноз затрат общехозяйственного назначения | C47: 1892277.14
A48: 3 | B48: Прогноз суммы начисленной амортизации имущества общехозяйственного назначения | C48: 314048.02
A49: 4 | B49: Прогноз суммарного фонда оплаты труда основного персонала | C49: 21802406.46
A50: 5 | B50: Коэффициент накладных затрат | C50: =(C46+C47+C48)/C49 -> 0.112
A51: 6 | B51: Затраты на основной персонал, участвующий в предоставлении платной услуги | C51: =E12 -> 211.30
A52: 7 | B52: Итого накладных затрат | C52: =C51*C50 -> 23.57
A55: РАСЧЕТ
A56: ЦЕНЫ НА ОКАЗАНИЕ ПЛАТНОЙ УСЛУГИ (РАБОТЫ)
A57: Кружок "Веселые мячики "Су-джок""
A58: N | B58: Наименование статей затрат | C58: Единица | D58: Показатель
A59: п/п | C59: измерения
A60: 1 | B60: Затраты на оплату труда основного персонала | C60: рублей | D60: =E12 -> 211.30
A61: 2 | B61: Затраты материальных запасов | C61: рублей | D61: =G25 -> 0
A62: 3 | B62: Сумма начисленной амортизации оборудования, | C62: рублей | D62: 0
B63: используемого при оказании платной услуги
A64: 4 | B64: Накладные затраты, относимые на платную услугу | C64: рублей | D64: =C52 -> 23.57
A65: 5 | B65: Итого затрат | C65: рублей | D65: =D64+D62+D61+D60 -> 234.87
A66: 6 | B66: Рентабельность | C66: процентов | D66: 20
A67: 7 | B67: Затраты с учетом рентабельности | C67: рублей | D67: =(D65*0.2)+D65 -> 282
A68: 8 | B68: Плановое количество оказываемых услуг | C68: штук | D68: 4
A69: 9 | B69: Цена платной услуги | C69: рублей за | D69: =D68*D67 -> 1127.38
C70: 1 услугу
A71: 10 | B71: Цена одного воспитанника в месяц | C71: рублей | D71: 1500
